bitfinex/quotes_ETHUSD_20240924
["timestamp","ask_amount","ask_price","bid_price","bid_amount"]
[1727213787765,2.07264936,2652.1,2652.0,0.59956871]
[1727213788367,2.07264936,2652.1,2652.0,1.11199558]
[1727213791585,2.07264936,2652.1,2652.0,1.61199558]
[1727213792959,2.07264936,2652.1,2652.0,2.16199558]
[1727213793156,0.88922983,2652.1,2652.0,2.16199558]
[1727213793681,2.07264936,2652.1,2652.0,2.16199558]
[1727213795549,0.88922983,2652.1,2652.0,2.66199558]
[1727213795750,2.07252387,2652.1,2652.0,2.66199558]
[1727213797364,2.07252387,2652.1,2652.0,2.14956871]
[1727213799651,2.07252387,2652.1,2652.0,2.64956871]
[1727213800454,2.07273085,2652.1,2652.0,2.64956871]
[1727213801154,2.07273085,2652.1,2652.0,2.55376896]
[1727213802185,2.07273085,2652.1,2652.0,2.64915544]
[1727213802393,2.07273085,2652.1,2652.0,2.98944098]
[1727213802592,2.07537981,2652.1,2652.0,2.98944098]
[1727213802753,2.07320447,2652.1,2652.0,2.98944098]
[1727213803091,2.07314433,2652.1,2652.0,2.98944098]
[1727213803690,2.07539531,2652.1,2652.0,2.98944098]
[1727213803981,2.07539213,2652.1,2652.0,3.48944098]
[1727213804587,3.65522335,2652.1,2652.0,3.48944098]
[1727213805181,2.07551222,2652.1,2652.0,3.48944098]
[1727213805399,3.65554534,2652.1,2652.0,3.48944098]
[1727213808166,2.07405351,2652.1,2652.0,3.48944098]
[1727213808488,2.07397283,2652.1,2652.0,3.48944098]
[1727213808732,2.07652943,2652.1,2652.0,3.48944098]
[1727213808987,2.07433348,2652.1,2652.0,3.48944098]
[1727213809192,2.07646862,2652.1,2652.0,3.48944098]
[1727213810190,3.65617975,2652.1,2652.0,3.48944098]
[1727213810693,3.67583765,2652.1,2652.0,3.48944098]
[1727213811363,2.09612652,2652.1,2652.0,3.48944098]
[1727213814774,2.0980169,2652.1,2652.0,3.48944098]
[1727213819606,3.67772803,2652.1,2652.0,3.48944098]
[1727213820621,8.09950447,2652.1,2652.0,2.59915544]
[1727213820784,8.09950447,2652.1,2652.0,2.5]
[1727213821112,15.85031901,2652.1,2652.0,0.40020055]
[1727213821273,15.16583984,2652.1,2652.0,0.40020055]
[1727213821475,18.42687036,2652.1,2652.0,0.40020055]
[1727213822508,3.77145,2651.5,2651.4,0.38116082]
[1727213822692,8.08070657,2651.5,2651.4,0.37739186]
[1727213822908,12.68662347,2651.5,2651.4,0.37739186]
[1727213823604,8.83534434,2651.5,2651.4,0.37739186]
[1727213825480,10.80297513,2651.5,2651.4,0.37739186]
[1727213825921,8.83534434,2651.5,2651.4,0.37739186]
[1727213826479,10.80226772,2651.5,2651.4,0.37739186]
[1727213828401,8.83534434,2651.5,2651.4,0.37739186]
[1727213828934,10.4077737,2651.5,2651.4,0.37739186]
[1727213829423,10.40744748,2651.5,2651.4,0.37739186]
[1727213830324,3.77173,2651.3,2651.2,0.00376896]
[1727213830528,6.60745278,2651.3,2651.2,0.00376896]
[1727213830727,3.77201,2651.1,2651.0,0.00376896]
[1727213837445,3.77201,2651.1,2651.0,0.0851702]
[1727213841849,4.55767417,2651.2,2651.0,0.0851702]
[1727213842052,4.55767417,2651.2,2651.1,0.00376896]
[1727213842350,4.55767417,2651.2,2651.1,0.08503729]
[1727213842722,3.77148,2651.5,2651.2,0.7779]
[1727213842921,0.80544207,2651.8,2651.5,0.7779]
[1727213843149,0.80544207,2651.8,2651.6,0.4553229]
[1727213843150,0.0196579,2651.8,2651.6,0.4553229]
[1727213843355,0.0196579,2651.8,2651.7,0.00376896]
[1727213843756,0.0196579,2651.8,2651.7,0.63457561]
[1727213844069,0.0196579,2651.8,2651.7,4.40573561]
[1727213844264,0.0196579,2651.8,2651.7,5.18363561]
[1727213844436,0.0196579,2651.8,2651.7,6.22319293]
[1727213860702,0.0196579,2651.8,2651.7,9.22319293]
[1727213881619,0.0196579,2651.8,2651.7,9.58860949]
[1727213884276,0.0196579,2651.8,2651.7,9.22319293]
[1727213884926,0.0196579,2651.8,2651.7,9.58886575]
[1727213885303,0.0196579,2651.8,2651.7,9.95467422]
[1727213887941,0.0196579,2651.8,2651.7,9.58886575]
[1727213888113,0.0196579,2651.8,2651.7,9.95525476]
[1727213888439,0.0196579,2651.8,2651.7,11.72782247]
[1727213890126,0.0196579,2651.8,2651.7,12.52002232]
[1727213890438,0.0196579,2651.8,2651.7,12.15363331]
[1727213890596,0.8085579,2651.8,2651.7,10.82672747]
[1727213890797,0.8085579,2651.8,2651.7,0.45024843]
[1727213891844,0.8085579,2651.8,2651.7,1.92748235]
[1727213892142,0.8085579,2651.8,2651.7,1.56180953]
[1727213892318,0.8085579,2651.8,2651.7,0.63457561]
[1727213930100,4.5795779,2651.8,2651.7,0.08457561]
[1727213930439,6.91495064,2651.8,2651.7,0.08457561]
[1727213930740,6.12916647,2651.8,2651.7,0.08457561]
[1727213930895,6.91495064,2651.8,2651.7,0.08457561]
[1727213931415,7.30790479,2651.8,2651.7,0.08457561]
[1727213931730,7.31070479,2651.8,2651.7,0.00376896]
[1727213932591,7.31070479,2651.8,2651.7,0.07614176]
[1727213932927,7.31070479,2651.8,2651.7,0.00376896]
[1727213933513,7.31137611,2651.8,2651.7,0.00376896]
[1727213935063,7.31137611,2651.8,2651.7,0.07614176]
[1727213935203,8.89996489,2651.8,2651.7,0.00376896]
[1727213935403,9.29938942,2651.8,2651.7,0.07614176]
[1727213935605,3.7713,2651.6,2651.5,0.00376896]
[1727213935844,8.21533999,2651.6,2651.5,0.00376896]
[1727213936007,8.21533999,2651.6,2651.5,0.07596706]
[1727213936202,6.63730181,2651.6,2651.5,0.00376896]
[1727213936408,9.66678142,2651.6,2651.5,0.44371306]
[1727213937369,10.05934309,2651.6,2651.5,0.44371306]
[1727213937746,10.05934309,2651.6,2651.5,0.07596706]
[1727213938266,7.19193757,2651.6,2651.5,0.07596706]
[1727213938437,10.06397045,2651.6,2651.5,0.07596706]
[1727213938645,8.09095054,2651.6,2651.5,0.07596706]
[1727213939231,9.66914452,2651.6,2651.5,0.00376896]
[1727213939933,8.09095054,2651.6,2651.5,0.07611655]
[1727213940131,9.66910613,2651.6,2651.5,0.07611655]
[1727213940331,8.09095054,2651.6,2651.5,0.00376896]
[1727213940694,9.66911617,2651.6,2651.5,0.07611655]
[1727213940825,9.66911617,2651.6,2651.5,0.00376896]
[1727213941032,9.66911617,2651.6,2651.5,0.07611655]
[1727213941566,9.66895006,2651.6,2651.5,0.07611655]
[1727213943040,9.66895006,2651.6,2651.5,0.00376896]
[1727213943844,9.66895006,2651.6,2651.5,0.07611655]
[1727213944069,9.66895006,2651.6,2651.5,0.00376896]
[1727213944328,9.66895006,2651.6,2651.5,0.07611655]
[1727213944615,9.66895006,2651.6,2651.5,0.00376896]
[1727213944784,9.66895006,2651.6,2651.5,0.07611655]
[1727213944974,9.66895006,2651.6,2651.5,0.00376896]
[1727213945176,8.09078443,2651.6,2651.5,0.07611655]
[1727213945375,9.66895006,2651.6,2651.5,0.07611655]
[1727213946272,9.66895006,2651.6,2651.5,0.00376896]
[1727213946578,8.09090974,2651.6,2651.5,0.07611655]
[1727213946804,9.66805442,2651.6,2651.5,0.07611655]
[1727213952053,4.44624081,2651.6,2651.5,0.07611655]
[1727213952260,0.0196579,2651.8,2651.7,0.55]
[1727213952555,0.0196579,2651.8,2651.7,11.64983423]
[1727213952761,0.0196579,2651.8,2651.7,13.57466096]
[1727213953118,0.0196579,2651.8,2651.7,13.95152377]
[1727213954235,0.0196579,2651.8,2651.7,13.57466096]
[1727213954666,0.0196579,2651.8,2651.7,11.34196354]
[1727213954844,0.0196579,2651.8,2651.7,11.41337861]
[1727213955658,0.0196579,2651.8,2651.7,10.35211383]
[1727213955864,0.0196579,2651.8,2651.7,11.43221432]
[1727213956668,0.0196579,2651.8,2651.7,12.36647218]
[1727213956967,0.0196579,2651.8,2651.7,13.44631048]
[1727213958036,0.0196579,2651.8,2651.7,11.64640519]
[1727213958779,0.0196579,2651.8,2651.7,13.44546282]
[1727213959872,0.0196579,2651.8,2651.7,12.72583977]
[1727213960205,0.0196579,2651.8,2651.7,11.64640519]
[1727213971057,0.0196579,2651.8,2651.7,11.64640519]
[1727213973551,0.0196579,2651.8,2651.7,10.20590762]
[1727213973739,0.0196579,2651.8,2651.7,11.64640519]
[1727213975158,0.0196579,2651.8,2651.7,10.20590762]
[1727213975317,0.0196579,2651.8,2651.7,11.09640519]
[1727213975640,0.8263579,2651.8,2651.7,0.07608927]
[1727213996095,0.8263579,2651.8,2651.7,0.57608927]
[1727214000100,0.8263579,2651.8,2651.7,1.07608927]
[1727214000446,5.78000734,2651.8,2651.7,1.07232031]
[1727214000603,5.78000734,2651.8,2650.4,3.77301]
[1727214000604,0.7824,2651.7,2650.4,3.77301]
[1727214000925,3.77256,2650.8,2650.5,0.0591869]
[1727214001223,0.7824,2650.9,2650.5,0.0591869]
[1727214001224,4.55472,2650.9,2650.5,0.0591869]
[1727214001726,0.7824,2650.8,2650.3,3.77303]
[1727214002019,0.7824,2650.8,2650.4,3.773]
[1727214002220,0.7824,2650.8,2650.4,4.75101276]
[1727214002435,0.7824,2650.8,2650.5,0.05723709]
[1727214003396,4.55484,2650.8,2650.5,0.05723709]
[1727214003721,4.55484,2650.8,2650.6,0.05717694]
[1727214003919,4.55484,2650.8,2650.4,0.55]
[1727214004128,0.7824,2650.8,2650.4,4.32298]
[1727214004311,0.7824,2650.8,2650.4,0.55]
[1727214004623,3.7726,2650.7,2650.5,0.05723709]
[1727214004795,3.7726,2650.7,2650.3,0.55]
[1727214005003,3.7726,2650.7,2650.4,0.05729724]
[1727214005399,0.7824,2650.8,2650.4,0.05729724]
[1727214005903,4.55488,2650.8,2650.4,0.05729724]
[1727214009695,0.7824,2650.8,2650.4,3.83024724]
[1727214010137,4.55485,2650.8,2650.4,0.05729724]
[1727214011139,4.55485,2650.8,2650.4,3.83028724]
[1727214011332,3.77259,2650.7,2650.4,0.05729724]
[1727214013631,0.7851,2650.6,2650.4,0.05729724]
[1727214013835,3.77287,2650.5,2650.4,0.05729724]
[1727214014042,3.77287,2650.5,2650.4,0.05828712]
[1727214014338,3.77287,2650.5,2650.0,6.77357]
[1727214014497,3.77287,2650.5,2650.4,0.05828712]
[1727214014697,3.77287,2650.5,2650.0,6.77357]
[1727214014911,3.77287,2650.5,2650.4,0.05828712]
[1727214015111,3.77287,2650.5,2650.1,0.55]
[1727214015310,3.77287,2650.5,2650.4,0.05828712]
[1727214015508,3.77287,2650.5,2650.1,0.55]
[1727214015740,0.7851,2650.6,2650.4,3.83129712]
[1727214015937,0.7851,2650.9,2650.5,3.77287]
[1727214016100,0.7851,2650.9,2650.5,3.83106347]
[1727214016302,0.7851,2650.9,2650.5,0.05830347]
[1727214016581,3.77273,2650.6,2650.5,0.05830347]
[1727214016836,4.935103,2650.6,2650.1,4.32331]
[1727214017019,4.935103,2650.6,2650.2,0.05843561]
[1727214018004,4.935153,2650.6,2650.2,0.05843561]
[1727214018617,4.935153,2650.6,2650.2,3.83172561]
[1727214020339,4.55788,2650.6,2650.2,3.83172561]
[1727214020688,0.7851,2650.6,2650.2,3.83172561]
[1727214020998,0.7851,2650.6,2650.3,3.77314]
[1727214021207,0.7851,2650.6,2650.4,0.0583153]
[1727214024944,0.812,2650.9,2650.4,4.5955053]
[1727214025239,4.961545,2650.9,2650.4,0.0583153]
[1727214026323,3.77245,2650.8,2650.4,0.0583153]
[1727214029648,7.54498,2650.8,2650.4,0.0583153]
[1727214029847,0.8734205,2650.7,2650.4,0.0583153]
[1727214032413,0.8734205,2650.7,2650.4,0.09714346]
[1727214033251,3.77287,2650.5,2650.4,0.09714346]
[1727214033415,4.58487,2650.5,2650.4,0.09714346]
[1727214033619,3.77329,2650.3,2649.8,3.77379]
[1727214033821,3.77329,2650.3,2649.9,0.09749709]
[1727214034216,4.609124,2650.3,2649.9,0.09749709]
[1727214041146,0.835834,2650.3,2649.9,3.87115709]
[1727214041422,3.77305,2650.4,2649.9,3.87115709]
[1727214043625,4.55963165,2650.4,2649.9,3.87115709]
[1727214043826,3.77339,2650.2,2649.9,0.09749709]
[1727214044155,0.54414337,2650.1,2649.9,0.09749709]
[1727214045636,4.55997165,2650.2,2649.9,0.09749709]
[1727214052488,0.8169,2650.1,2649.9,0.09749709]
[1727214053681,4.59035,2650.1,2649.9,0.09749709]
[1727214053865,4.59035,2650.1,2649.7,0.58737856]
[1727214054071,5.62336941,2650.1,2649.8,0.09783658]
[1727214054272,5.62336941,2650.1,2649.7,0.58737856]
[1727214054492,5.62336941,2650.1,2649.8,0.09783658]
[1727214055296,5.62336941,2650.1,2649.9,0.09777494]
[1727214055456,5.62336941,2650.1,2649.7,0.5874059]
[1727214055655,5.62336941,2650.1,2649.8,0.09783658]
[1727214055877,5.62336941,2650.1,2649.6,8.8997359]
[1727214056082,5.62336941,2650.1,2649.7,0.68530412]
[1727214056703,3.77362,2650.0,2649.7,0.09789822]
[1727214057022,4.79195411,2650.0,2649.7,0.09789822]
[1727214058771,1.01833411,2650.0,2649.7,0.09789822]
[1727214060764,1.01833411,2650.0,2649.7,3.87189822]
[1727214062410,1.01833411,2650.0,2649.7,4.45940208]
[1727214064210,1.60348165,2650.1,2649.7,8.23333208]
[1727214064379,1.60348165,2650.1,2649.8,3.77383]
[1727214064568,0.78658165,2650.1,2649.9,3.77369]
[1727214064773,0.78658165,2650.1,2649.9,3.8715455]
[1727214065011,0.78658165,2650.1,2650.0,3.77358]
[1727214065306,0.78658165,2650.1,2650.0,3.87137386]
[1727214069107,1.67082628,2650.1,2650.0,3.87137386]
[1727214069279,0.78658165,2650.1,2650.0,3.87137386]
[1727214071988,1.6711792,2650.1,2650.0,3.87137386]
[1727214074675,0.88459755,2650.1,2650.0,3.87137386]
[1727214075077,1.67401293,2650.1,2650.0,3.87137386]
[1727214075315,1.67400937,2650.1,2650.0,0.09779386]
[1727214075485,1.40460206,2650.1,2650.0,0.09779386]
[1727214075686,1.40460206,2650.1,2649.8,3.77375]
[1727214075687,2.58447453,2650.1,2649.8,3.77375]
[1727214075895,1.6740759,2650.0,2649.9,0.68544641]
[1727214076706,1.6740759,2650.0,2649.9,4.45916641]
[1727214076914,1.67465712,2650.0,2649.9,3.87105394]
[1727214077116,1.67465712,2650.0,2649.9,4.37105394]
[1727214078324,0.88517877,2650.0,2649.9,4.37105394]
[1727214078697,1.67519244,2650.0,2649.9,4.37105394]
[1727214079227,1.67519244,2650.0,2649.9,5.32733105]
[1727214079427,2.06505124,2650.0,2649.9,5.32733105]
[1727214081231,2.06505124,2650.0,2649.9,5.82733105]
[1727214082323,2.06505124,2650.0,2649.9,6.56325261]
[1727214084980,2.06505124,2650.0,2649.9,5.82733105]
[1727214085248,2.06630469,2650.0,2649.9,7.06326339]
[1727214085609,2.06630469,2650.0,2649.9,6.32733105]
[1727214086712,2.06631616,2650.0,2649.9,6.32733105]
[1727214087150,0.88644369,2650.0,2649.9,7.06325463]
[1727214088334,0.88644369,2650.0,2649.9,6.32733105]
[1727214088552,0.88644369,2650.0,2649.9,7.06325448]
[1727214089414,2.06631616,2650.0,2649.9,6.10697737]
[1727214091470,2.06713515,2650.0,2649.9,6.10697737]
[1727214094445,0.88726268,2650.0,2649.9,6.10697737]
[1727214094643,2.06713515,2650.0,2649.9,6.10697737]
[1727214095268,0.88726268,2650.0,2649.9,6.10697737]
[1727214099830,2.06713515,2650.0,2649.9,6.10697737]
[1727214101268,2.06770761,2650.0,2649.9,6.10697737]
[1727214102287,2.06770761,2650.0,2649.9,5.37105394]
[1727214103273,2.06770761,2650.0,2649.9,6.10698354]
[1727214103843,2.06770761,2650.0,2649.9,6.8429112]
[1727214106079,1.17987247,2650.0,2649.9,6.8429112]
[1727214106287,2.06776598,2650.0,2649.9,6.8429112]
[1727214108490,2.06776598,2650.0,2649.9,6.10698354]
[1727214108696,2.06776598,2650.0,2649.9,6.84296208]
[1727214108872,2.06776598,2650.0,2649.9,6.10698354]
[1727214109059,2.06776598,2650.0,2649.9,6.65698354]
[1727214109266,1.17987247,2650.2,2650.0,3.77358]
[1727214109459,0.88785551,2650.1,2650.0,4.32358]
[1727214109680,1.67826485,2650.1,2650.0,4.32358]
[1727214110004,2.06772798,2650.1,2650.0,5.05947919]
[1727214110163,1.67822367,2650.1,2650.0,5.05947919]
[1727214110358,1.67816247,2650.1,2650.0,5.05947919]
[1727214110586,1.67816054,2650.1,2650.0,5.05947919]
[1727214110958,0.88773754,2650.1,2650.0,5.05947919]
[1727214111794,1.6780265,2650.1,2650.0,5.05947919]
[1727214112471,0.88773754,2650.1,2650.0,4.32358]
[1727214112678,1.67799646,2650.1,2650.0,4.32358]
[1727214113196,1.67799646,2650.1,2650.0,5.05943919]
[1727214113610,0.88773754,2650.1,2650.0,4.32358]
[1727214113811,1.67798047,2650.1,2650.0,5.05938752]
[1727214114685,1.5731633,2650.3,2650.2,3.7733]
[1727214114686,0.79024293,2650.3,2650.2,3.7733]
[1727214114874,0.79024293,2650.3,2650.2,4.50902347]
[1727214114875,1.67793795,2650.3,2650.2,4.50902347]
[1727214115087,1.67797622,2650.3,2650.2,3.7733]
[1727214115823,1.67782859,2650.3,2650.2,5.05887133]
[1727214116411,1.67782859,2650.3,2650.2,4.3233]
[1727214116622,1.67782859,2650.3,2650.2,4.93519925]
[1727214116922,1.67782859,2650.3,2650.2,5.67077207]
[1727214117124,1.67782859,2650.3,2650.2,5.02906214]
[1727214118302,0.7902812,2650.4,2650.3,3.77315]
[1727214118583,1.6776384,2650.4,2650.3,4.41695126]
[1727214119109,1.67765048,2650.4,2650.3,4.41695126]
[1727214119296,1.67765253,2650.4,2650.3,4.41695126]
[1727214119725,1.67765253,2650.4,2650.3,0.64380126]
[1727214120015,2.19702094,2650.4,2650.3,0.64380126]
[1727214120214,2.19702215,2650.4,2650.3,0.64380126]
[1727214120580,1.67737936,2650.4,2650.3,0.64380126]
[1727214120811,0.88775127,2650.4,2650.3,0.64380126]
[1727214121012,1.677367,2650.4,2650.3,4.41695126]
[1727214123397,1.677367,2650.4,2650.3,0.64380126]
[1727214123993,1.67715625,2650.4,2650.3,0.64380126]
[1727214125393,0.78961573,2650.5,2650.3,0.64380126]
[1727214125598,0.88741869,2650.4,2650.3,0.64380126]
[1727214126286,0.78961573,2650.5,2650.3,0.64380126]
[1727214126494,1.67693634,2650.4,2650.3,0.64380126]
[1727214127486,1.67693634,2650.4,2650.3,4.41695126]
[1727214128033,1.67693634,2650.4,2650.0,0.73509559]
[1727214128034,2.44873634,2650.4,2650.0,0.73509559]
[1727214128248,2.44873634,2650.4,2649.4,2.00007685]
[1727214128397,1.25,2649.6,2647.1,2.24234914]
[1727214128594,19.87,2649.7,2647.0,3.62856557]
[1727214128595,0.78640506,2647.2,2647.0,0.038194]
[1727214128910,0.78640506,2647.3,2647.0,0.038194]
[1727214129095,0.78640506,2647.4,2647.0,0.038194]
[1727214129297,1.57279688,2647.6,2647.0,0.038194]
[1727214129298,0.78640506,2647.6,2647.1,0.84734545]
[1727214129646,0.78640506,2647.6,2647.1,0.05886662]
[1727214129647,0.78640506,2647.4,2647.1,0.05886662]
[1727214129992,0.78640506,2647.5,2647.1,0.05886662]
[1727214130188,3.00625711,2647.4,2647.1,0.05886662]
[1727214130432,0.78640506,2647.6,2647.1,0.05886662]
[1727214130597,1.17960759,2647.7,2647.1,0.05886662]
[1727214130598,0.78640506,2647.7,2647.1,0.05886662]
[1727214130798,1.67091226,2647.7,2647.1,0.05886662]
[1727214131026,0.78640506,2647.7,2647.1,0.05886662]
[1727214131226,2.99773524,2647.7,2647.1,0.05886662]
[1727214131409,0.78640506,2648.1,2647.6,1.44049757]
[1727214131617,0.78640506,2648.1,2647.4,1.44049757]
[1727214132099,0.78640506,2648.2,2647.5,0.55]
[1727214132297,0.78640506,2648.3,2647.7,0.55]
[1727214132510,2.98382571,2648.3,2647.7,0.55]
[1727214132699,0.78640506,2648.4,2647.7,0.55]
[1727214132895,2.98373666,2648.4,2647.7,0.55]
[1727214133130,1.66532912,2648.3,2647.7,0.55]
[1727214133337,3.77602,2648.3,2647.8,0.21895473]
[1727214133958,4.56242506,2648.3,2647.8,0.21895473]
[1727214134440,5.72718759,2648.5,2647.8,0.21895473]
[1727214134441,3.77616,2648.2,2647.9,0.06443507]
[1727214134627,4.56238506,2648.4,2647.9,0.06443507]
[1727214134944,3.77607,2648.3,2647.5,0.55]
[1727214135247,3.77607,2648.3,2647.7,0.55]
[1727214135650,3.77607,2648.3,2647.8,0.06402025]
[1727214136149,3.77607,2648.3,2647.7,0.55]
[1727214136315,3.77607,2648.3,2647.9,0.06395851]
[1727214136510,3.77607,2648.3,2647.8,0.06402025]
[1727214136705,3.77607,2648.3,2647.9,0.06395851]
[1727214137126,3.77607,2648.3,2648.0,0.06389678]
[1727214137443,3.77607,2648.3,2647.7,0.55]
[1727214137650,3.77607,2648.3,2648.1,0.06383506]
[1727214137846,3.77607,2648.3,2647.7,0.55]
[1727214138147,3.77607,2648.3,2648.2,0.06377334]
[1727214138319,3.77615,2648.2,2647.7,0.55]
[1727214138723,3.77615,2648.2,2647.8,0.06402025]
[1727214139127,3.77615,2648.2,2647.7,0.55]
[1727214139332,3.77615,2648.2,2647.9,0.06395851]
[1727214139534,3.77615,2648.2,2647.8,0.06402025]
[1727214139755,3.77615,2648.2,2648.0,0.06485828]
[1727214139936,3.77615,2648.2,2647.7,0.55]
[1727214139937,3.77615,2648.2,2647.9,0.06277726]
[1727214140123,3.77615,2648.2,2648.1,0.06265381]
[1727214140330,3.77615,2648.2,2648.0,0.06271553]
[1727214140659,3.77615,2648.2,2648.1,0.06265381]
[1727214140842,3.77615,2648.2,2647.7,0.55]
[1727214141030,3.77615,2648.2,2648.1,0.06265381]
[1727214141348,3.77615,2648.2,2647.8,0.7718]
[1727214141569,3.77615,2648.2,2648.1,0.06265381]
[1727214142027,3.77615,2648.2,2647.8,0.7718]
[1727214142234,3.77615,2648.2,2648.1,0.06265381]
[1727214142425,3.77615,2648.2,2647.8,0.7718]
[1727214142625,3.77615,2648.2,2648.1,0.06265381]
[1727214142850,3.77615,2648.2,2647.8,0.7718]
[1727214143054,3.77615,2648.2,2648.1,0.06265381]
[1727214143238,3.77615,2648.2,2647.8,0.7718]
[1727214143414,3.77615,2648.2,2648.1,0.06056535]
[1727214143619,3.77615,2648.2,2647.8,1.31846929]
[1727214143858,3.77615,2648.2,2648.1,0.06056535]
[1727214144014,3.77615,2648.2,2647.8,0.7718]
[1727214144221,3.77615,2648.2,2648.1,0.06056535]
[1727214144421,3.77615,2648.2,2647.8,0.7718]
[1727214144628,3.77615,2648.2,2648.1,0.06056535]
[1727214144844,3.77615,2648.2,2647.8,0.7718]
[1727214145047,3.77615,2648.2,2648.1,0.06056535]
[1727214145360,3.77615,2648.2,2647.8,1.31846929]
[1727214145533,3.77615,2648.2,2648.1,0.06056535]
[1727214145729,3.77615,2648.2,2647.8,0.7718]
[1727214146246,3.77615,2648.2,2647.9,0.0606888]
[1727214150536,3.77601,2648.3,2647.9,0.88951557]
[1727214150949,3.77615,2648.2,2647.9,0.88951557]
[1727214151369,3.77592,2648.4,2647.9,0.88951557]
[1727214151526,3.77601,2648.3,2648.0,0.05945336]
[1727214151731,3.77601,2648.3,2647.8,3.38879273]
[1727214151927,3.77601,2648.3,2647.9,0.0595151]
[1727214154357,3.77601,2648.3,2647.9,1.50351078]
[1727214155943,3.77615,2648.2,2647.9,1.50351078]
[1727214158066,3.77608,2648.3,2647.9,1.50351078]
[1727214162597,3.77608,2648.3,2647.9,0.0595151]
[1727214164058,7.55217,2648.3,2647.9,0.0595151]
[1727214164795,7.55218,2648.3,2647.9,0.0595151]
[1727214165094,3.77608,2648.3,2647.9,0.0595151]
[1727214165598,7.55218,2648.3,2647.9,0.0595151]
[1727214168200,3.77608,2648.3,2647.9,0.0595151]
[1727214168494,0.85010056,2648.2,2647.9,0.0595151]
[1727214169300,0.85010056,2648.1,2647.9,0.0595151]
[1727214169659,0.85010056,2648.1,2648.0,0.0552715]
[1727214170498,2.91014608,2648.1,2648.0,0.0552715]
[1727214171295,3.30334861,2648.1,2648.0,0.0552715]
[1727214171601,1.77073355,2648.1,2648.0,0.0552715]
[1727214171796,3.89596627,2648.1,2648.0,0.05144528]
[1727214172363,3.89596627,2648.1,2647.6,4.14477289]
[1727214172364,3.0,2647.3,2646.2,0.038194]
[1727214172562,0.78518411,2646.3,2646.2,0.038194]
[1727214172810,0.85009309,2646.3,2646.2,0.038194]
[1727214172972,3.88963463,2646.3,2646.2,0.038194]
[1727214173363,6.92427704,2646.3,2646.2,0.038194]
[1727214173989,6.92427704,2646.3,2646.2,0.588194]
[1727214174387,3.88998507,2646.3,2646.2,0.588194]
[1727214174961,3.2985095,2646.3,2646.2,0.588194]
[1727214175164,3.88998475,2646.3,2646.2,0.588194]
[1727214175374,3.2985095,2646.3,2646.2,0.588194]
[1727214176463,2.90490926,2646.3,2646.2,0.588194]
[1727214176800,0.85009309,2646.3,2646.2,0.588194]
[1727214177107,3.29748059,2646.3,2646.2,0.588194]
[1727214177283,2.9034357,2646.3,2646.2,0.63105654]
[1727214178381,0.85009309,2646.3,2646.2,0.63105654]
[1727214179395,0.78405576,2646.4,2646.2,0.63105654]
[1727214179577,4.56264576,2646.5,2646.2,0.63105654]
[1727214179785,2.11259786,2646.4,2646.2,0.63105654]
[1727214180000,4.56264576,2646.5,2646.2,0.63105654]
[1727214180200,0.84508031,2646.4,2646.2,0.63105654]
[1727214180509,0.78405576,2646.5,2646.2,0.63105654]
[1727214180702,0.84503923,2646.4,2646.2,0.63105654]
[1727214181176,0.78405576,2646.5,2646.2,0.63105654]
[1727214181373,0.84499998,2646.4,2646.2,0.63105654]
[1727214182066,0.78405576,2646.5,2646.2,0.63105654]
[1727214182297,2.89577,2646.5,2646.2,0.63105654]
[1727214182496,4.56250576,2646.6,2646.2,0.63105654]
[1727214182709,0.84442514,2646.5,2646.2,0.63105654]
[1727214183004,0.84442514,2646.5,2646.2,0.08105654]
[1727214183173,2.8951311,2646.5,2646.2,0.08105654]
[1727214183373,4.56250576,2646.6,2646.2,0.08105654]
[1727214183730,0.84416841,2646.5,2646.2,0.08105654]
[1727214184001,4.56250576,2646.6,2646.2,0.08105654]
[1727214184207,0.84414524,2646.5,2646.2,0.08105654]
[1727214184374,4.56250576,2646.6,2646.2,0.08105654]
[1727214184747,3.77845,2646.6,2646.2,0.08105654]
[1727214188542,4.534111,2646.6,2646.2,0.08105654]
[1727214188679,3.77845,2646.6,2646.2,3.86005654]
[1727214188992,3.77845,2646.6,2646.2,0.08105654]
[1727214189195,3.77858,2646.5,2646.2,0.08105654]
[1727214189402,0.8138,2646.9,2646.2,0.08105654]
[1727214189403,3.77832,2646.7,2646.2,0.08105654]
[1727214189612,3.77832,2646.7,2646.2,3.85997654]
[1727214192308,0.8138,2646.9,2646.8,3.77814]
[1727214192511,1.57216821,2647.7,2647.0,0.8326]
[1727214192512,4.56115576,2647.6,2647.0,0.8326]
[1727214192809,3.7771,2647.6,2647.0,4.61038]
[1727214192994,4.54607,2647.7,2647.1,0.04248223]
[1727214193195,5.19686464,2647.7,2647.2,3.77753]
[1727214193427,1.41999464,2647.7,2647.1,3.82016223]
[1727214193635,1.41999464,2647.7,2647.3,0.0423587]
[1727214193833,0.51967846,2647.6,2647.3,3.77742]
[1727214193993,0.51967846,2647.6,2647.4,0.04210867]
[1727214194324,5.87665208,2648.0,2647.4,0.04210867]
[1727214194627,5.87665208,2648.0,2647.5,3.77712]
[1727214194925,5.09259632,2648.0,2647.6,0.04197715]
[1727214195127,0.96530221,2647.9,2647.6,0.04197715]
[1727214196634,0.96530221,2647.9,2647.6,3.81890715]
[1727214196851,0.78405576,2648.1,2647.7,3.77676]
[1727214197027,1.55325576,2648.3,2647.9,3.77653]
[1727214197343,0.7692,2648.3,2648.0,0.0417302]
[1727214197513,1.41992264,2648.3,2648.0,0.0417302]
[1727214199137,4.95373065,2648.6,2648.0,3.77639]
[1727214199138,3.77586,2648.4,2648.0,3.77639]
[1727214199340,3.77586,2648.4,2648.1,0.04141622]
[1727214199543,5.32888576,2648.6,2648.1,3.81767622]
[1727214199749,0.65069864,2648.5,2648.1,3.81767622]
[1727214200203,0.78405576,2648.7,2648.2,3.77603]
[1727214200403,2.88576122,2648.7,2648.3,3.81519653]
[1727214200605,4.55942576,2648.8,2648.3,3.81519653]
[1727214200828,0.84066295,2648.7,2648.3,0.03928653]
[1727214201008,5.32840576,2648.9,2648.4,3.77585]
[1727214201341,1.71284616,2648.8,2648.5,0.03912309]
[1727214201642,1.71284616,2648.8,2648.6,3.77557]
[1727214201643,0.87223807,2648.8,2648.6,3.77557]
[1727214201826,0.78405576,2649.0,2648.7,0.03899969]
[1727214202446,2.88541138,2649.0,2648.7,0.03899969]
[1727214202610,4.55895576,2649.1,2648.7,0.03899969]
[1727214202809,2.10105016,2649.0,2648.7,0.03899969]
[1727214203022,0.66600059,2648.9,2648.7,0.03899969]
[1727214204318,0.66600059,2648.9,2648.7,3.81442969]
[1727214204515,0.78405576,2649.1,2648.7,3.81442969]
[1727214204756,2.88582735,2649.1,2648.7,3.81442969]
[1727214205051,0.78405576,2649.1,2648.7,3.81442969]